bitfinex/quotes_BTCUSD_20220201
["timestamp","ask_amount","ask_price","bid_price","bid_amount"]
[1643743405720,0.13149954,38394.0,38383.0,0.27376789]
[1643743405721,0.065138,38393.0,38383.0,0.27376789]
[1643743406121,0.00123778,38390.0,38383.0,0.27376789]
[1643743406322,0.00123778,38390.0,38384.0,0.415353]
[1643743406521,0.00123778,38390.0,38385.0,0.25139141]
[1643743406721,0.00123778,38390.0,38386.0,0.303068]
[1643743407121,0.065134,38391.0,38387.0,0.09775274]
[1643743407326,0.00123793,38390.0,38388.0,0.350173]
[1643743407720,0.00123793,38390.0,38389.0,1.14982318]
[1643743407922,0.00123793,38390.0,38389.0,1.45286518]
[1643743408322,0.065134,38391.0,38389.0,1.45286518]
[1643743408520,0.065134,38391.0,38390.0,0.67277004]
[1643743408721,0.00123792,38391.0,38390.0,1.72277004]
[1643743409572,0.19537213,38398.0,38390.0,1.400154]
[1643743409773,0.19537213,38398.0,38397.0,0.09575825]
[1643743410874,0.24537213,38398.0,38397.0,0.09575825]
[1643743411072,0.05,38397.0,38396.0,0.09541287]
[1643743411273,0.05,38397.0,38382.0,0.247472]
[1643743411274,0.05,38397.0,38391.0,0.065128]
[1643743411473,0.06512797,38396.0,38386.0,0.378162]
[1643743412373,0.1,38397.0,38389.0,0.09568581]
[1643743412374,0.00123787,38393.0,38389.0,0.09568581]
[1643743413218,0.180267,38394.0,38389.0,0.09568581]
[1643743413419,0.180267,38394.0,38390.0,0.350212]
[1643743413420,0.00123787,38393.0,38390.0,0.350212]
[1643743413619,0.00123787,38393.0,38391.0,0.31668618]
[1643743413820,0.05868821,38396.0,38392.0,0.702957]
[1643743414121,0.13026994,38395.0,38392.0,0.4]
[1643743414320,0.05,38396.0,38389.0,0.09568581]
[1643743414321,0.05,38394.0,38389.0,0.09568581]
[1643743414523,0.06513578,38392.0,38389.0,0.09568581]
[1643743414721,0.06513578,38392.0,38390.0,0.350212]
[1643743414925,0.06513578,38392.0,38391.0,0.29956204]
[1643743415128,0.115132,38393.0,38391.0,0.60668123]
[1643743415327,0.115132,38393.0,38392.0,0.65008328]
[1643743415328,0.065132,38393.0,38392.0,0.65008328]
[1643743415524,0.065129,38396.0,38392.0,0.350192]
[1643743415725,0.44420925,38405.0,38390.0,0.34133232]
[1643743415726,0.25211125,38405.0,38390.0,0.34133232]
[1643743415928,0.25211125,38405.0,38390.0,0.44133232]
[1643743416125,0.25211125,38405.0,38394.0,0.065122]
[1643743416525,0.25211125,38405.0,38403.0,0.10850544]
[1643743416783,0.17000211,38405.0,38401.0,0.09428009]
[1643743416983,0.17081607,38405.0,38401.0,0.09428009]
[1643743417189,0.24539771,38404.0,38401.0,0.09428009]
[1643743418283,0.24673251,38404.0,38401.0,0.09428009]
[1643743418883,0.21429257,38404.0,38401.0,0.09428009]
[1643743419283,0.21295777,38404.0,38401.0,0.09428009]
[1643743419484,0.16429257,38404.0,38402.0,0.29607582]
[1643743419687,0.0013348,38404.0,38401.0,0.09428009]
[1643743420388,0.13024008,38405.0,38401.0,0.09428009]
[1643743420647,0.0013348,38404.0,38401.0,0.09428009]
[1643743421247,0.0513348,38404.0,38401.0,0.09428009]
[1643743421646,0.05,38404.0,38402.0,0.29441554]
[1643743421844,0.05,38404.0,38401.0,0.09428009]
[1643743421845,0.05121711,38404.0,38401.0,0.09428009]
[1643743422248,0.02469594,38408.0,38402.0,0.5]
[1643743422446,0.28037868,38409.0,38403.0,0.29424156]
[1643743422647,0.28037868,38409.0,38402.0,0.5]
[1643743422648,0.180246,38408.0,38402.0,0.5]
[1643743422845,0.24536699,38408.0,38402.0,0.5]
[1643743423048,0.24536699,38408.0,38401.0,0.09428009]
[1643743423246,0.24536699,38408.0,38400.0,0.00125]
[1643743423447,0.065126,38406.0,38400.0,0.00125]
[1643743424048,0.06868074,38408.0,38401.0,0.065118]
[1643743424288,0.6390841,38407.0,38400.0,0.00125]
[1643743424490,0.06512,38406.0,38400.0,0.00125]
[1643743424686,0.6390841,38405.0,38400.0,0.00125]
[1643743424886,0.0521,38404.0,38400.0,0.00125]
[1643743425285,0.350212,38403.0,38400.0,0.00125]
[1643743425486,0.0521,38403.0,38400.0,0.00125]
[1643743425690,0.06512807,38402.0,38400.0,0.00125]
[1643743426290,0.11512807,38402.0,38400.0,0.00125]
[1643743426492,0.11512807,38402.0,38400.0,0.17581046]
[1643743426692,0.05,38402.0,38400.0,0.17581046]
[1643743427090,0.1,38406.0,38401.0,0.350212]
[1643743427292,0.05,38406.0,38400.0,0.17581046]
[1643743427491,0.2432,38409.0,38403.0,0.065109]
[1643743427692,0.7917,38411.0,38403.0,0.065109]
[1643743427890,0.7917,38411.0,38409.0,0.23614654]
[1643743428135,0.5225721,38414.0,38412.0,0.10230575]
[1643743428337,0.350212,38413.0,38412.0,0.10230575]
[1643743428535,0.35397105,38416.0,38412.0,0.10230575]
[1643743429135,0.13019695,38416.0,38412.0,0.10230575]
[1643743429335,0.01817195,38417.0,38412.0,0.10230575]
[1643743429935,0.01817195,38417.0,38416.0,0.1251928]
[1643743430341,0.065095,38418.0,38416.0,0.1251928]
[1643743430542,0.6390841,38417.0,38412.0,0.065094]
[1643743430842,0.13020592,38420.0,38407.0,0.130196]
[1643743431037,0.3388721,38419.0,38407.0,0.130196]
[1643743431439,0.00127543,38415.0,38407.0,0.130196]
[1643743431640,0.00127543,38415.0,38409.0,0.10237244]
[1643743431878,0.00127543,38415.0,38409.0,0.16747344]
[1643743432481,0.3888721,38417.0,38409.0,0.16747344]
[1643743432482,0.1,38417.0,38409.0,0.16747344]
[1643743432685,0.00122947,38414.0,38409.0,0.25605969]
[1643743433386,0.00122947,38414.0,38409.0,0.54967968]
[1643743433582,0.1,38417.0,38410.0,0.350212]
[1643743433785,0.1,38417.0,38409.0,0.54967968]
[1643743433786,0.00122948,38413.0,38411.0,0.065094]
[1643743433981,0.00122948,38413.0,38412.0,1.250212]
[1643743434181,0.00122948,38413.0,38412.0,0.350212]
[1643743434383,0.00122948,38413.0,38412.0,1.150212]
[1643743434783,0.115096,38417.0,38412.0,1.150212]
[1643743435082,0.115096,38417.0,38416.0,0.09207889]
[1643743435284,0.065096,38417.0,38416.0,0.09207889]
[1643743435817,0.19527793,38423.0,38416.0,0.09207889]
[1643743436122,0.02139594,38422.0,38419.0,0.22230033]
[1643743436316,0.19527793,38423.0,38419.0,0.22230033]
[1643743436618,0.19527793,38423.0,38416.0,0.09207889]
[1643743436817,0.19527793,38423.0,38413.0,0.11501445]
[1643743437017,0.065098,38419.0,38413.0,0.11501445]
[1643743437216,0.115098,38419.0,38413.0,0.11501445]
[1643743437616,0.115098,38419.0,38418.0,0.23310044]
[1643743438616,0.065098,38419.0,38418.0,0.23310044]
[1643743439372,0.065098,38419.0,38413.0,0.40829269]
[1643743439572,0.065098,38419.0,38414.0,0.075501]
[1643743439772,0.05,38420.0,38414.0,0.130178]
[1643743439773,0.00123744,38418.0,38414.0,0.130178]
[1643743439973,0.09623744,38420.0,38419.0,0.09663682]
[1643743440176,0.09623744,38420.0,38419.0,0.32760715]
[1643743440776,0.09623744,38420.0,38419.0,0.09663682]
[1643743441380,0.09623744,38420.0,38412.0,0.16193296]
[1643743441577,0.065095,38418.0,38412.0,0.16193296]
[1643743441776,0.065095,38418.0,38412.0,0.45280526]
[1643743441777,0.060095,38418.0,38412.0,0.45280526]
[1643743441976,0.060095,38418.0,38413.0,0.350212]
[1643743442177,0.05,38419.0,38414.0,0.065092]
[1643743442381,0.04704661,38420.0,38417.0,0.10918796]
[1643743442780,0.04204661,38420.0,38417.0,0.10918796]
[1643743443026,0.15713661,38420.0,38417.0,0.10918796]
[1643743443223,0.05,38419.0,38417.0,0.10918796]
[1643743443521,0.05,38419.0,38416.0,0.010411]
[1643743443720,0.05,38419.0,38413.0,0.065093]
[1643743443924,0.04257342,38420.0,38414.0,0.29291623]
[1643743444120,0.00133598,38420.0,38414.0,0.39291623]
[1643743444324,0.130186,38423.0,38414.0,0.29291623]
[1643743444522,0.01,38429.0,38414.0,0.29291623]
[1643743444523,0.130173,38427.0,38415.0,0.18306801]
[1643743444722,0.130173,38427.0,38415.0,0.33516801]
[1643743444723,0.00133597,38420.0,38415.0,0.33516801]
[1643743444923,0.00133597,38420.0,38416.0,0.350212]
[1643743445122,0.00133597,38420.0,38417.0,0.0521]
[1643743445322,0.00133597,38420.0,38418.0,0.302471]
[1643743445522,0.00133597,38420.0,38418.0,0.354571]
[1643743445722,0.02193003,38423.0,38418.0,0.354571]
[1643743445922,0.00133597,38421.0,38418.0,0.354571]
[1643743446526,0.00133597,38421.0,38418.0,0.419656]
[1643743446779,0.065086,38424.0,38418.0,0.367556]
[1643743446980,0.00121695,38421.0,38418.0,0.065085]
[1643743447280,0.00121695,38421.0,38419.0,0.350212]
[1643743448083,0.130173,38427.0,38419.0,0.350212]
[1643743448281,0.00121694,38422.0,38418.0,0.065085]
[1643743448479,0.00121694,38422.0,38421.0,0.89031239]
[1643743448681,0.00121694,38422.0,38421.0,0.40205936]
[1643743449281,0.130173,38427.0,38421.0,0.40205936]
[1643743449481,0.130173,38427.0,38424.0,0.29603064]
[1643743449482,0.120173,38427.0,38424.0,0.29603064]
[1643743449885,0.065083,38428.0,38424.0,0.29603064]
[1643743450285,0.115083,38428.0,38424.0,0.29603064]
[1643743450526,0.110083,38428.0,38424.0,0.29603064]
[1643743450720,0.11132665,38428.0,38426.0,0.0932543]
[1643743450919,0.11132665,38428.0,38427.0,0.10890491]
[1643743451121,0.06132665,38428.0,38427.0,0.10890491]
[1643743451320,0.06132665,38428.0,38427.0,0.70890491]
[1643743451723,0.060083,38428.0,38427.0,0.70890491]
[1643743451919,0.060083,38428.0,38427.0,0.99969494]
[1643743452123,0.01124364,38429.0,38427.0,1.34990694]
[1643743452324,0.01124364,38429.0,38428.0,2.17290098]
[1643743452521,0.01124364,38429.0,38428.0,2.07290098]
[1643743452921,0.01,38439.0,38436.0,0.27786054]
[1643743453125,0.01497338,38439.0,38437.0,0.10355442]
[1643743454270,0.00992178,38439.0,38437.0,0.10355442]
[1643743454667,0.00992178,38439.0,38438.0,0.350212]
[1643743454968,0.07499778,38439.0,38437.0,0.10355442]
[1643743455572,0.07499778,38439.0,38437.0,0.17944428]
[1643743455972,0.07499778,38439.0,38437.0,0.10355442]
[1643743456370,0.07499778,38439.0,38438.0,1.150212]
[1643743456772,0.07499778,38439.0,38438.0,0.41843701]
[1643743456969,0.07499778,38439.0,38438.0,0.59672726]
[1643743457170,0.07499778,38439.0,38438.0,0.302111]
[1643743457569,0.07499778,38439.0,38438.0,1.152111]
[1643743457570,0.03079778,38439.0,38438.0,1.152111]
[1643743457769,0.03079778,38439.0,38438.0,0.302111]
[1643743458217,0.03079778,38439.0,38438.0,0.752111]
[1643743458417,0.03079778,38439.0,38438.0,0.302111]
[1643743458819,0.08079778,38439.0,38436.0,0.010405]
[1643743459018,0.2919323,38438.0,38436.0,5e-06]
[1643743459221,0.402103,38437.0,38436.0,5e-06]
[1643743459425,0.6940353,38437.0,38436.0,5e-06]
[1643743459820,0.402103,38437.0,38436.0,5e-06]
[1643743460020,0.0521,38437.0,38436.0,5e-06]
[1643743460619,0.1021,38437.0,38429.0,0.09082343]
[1643743460918,0.06508045,38435.0,38429.0,0.09082343]
[1643743461519,0.00123861,38434.0,38429.0,0.09082343]
[1643743462375,0.06508045,38435.0,38429.0,0.09082343]
[1643743462575,0.00123862,38433.0,38429.0,0.09082343]
[1643743462777,0.06632062,38433.0,38429.0,0.09082343]
[1643743463379,0.130161,38437.0,38431.0,1.35]
[1643743463578,0.130161,38437.0,38432.0,0.302163]
[1643743463776,0.130161,38437.0,38432.0,0.454263]
[1643743463976,0.02004067,38438.0,38432.0,0.454263]
[1643743464180,0.065071,38436.0,38432.0,0.454263]
[1643743464378,0.02004067,38438.0,38432.0,0.454263]
[1643743464586,0.00992178,38439.0,38432.0,0.74518018]
[1643743464786,0.00992178,38439.0,38432.0,0.454263]
[1643743465178,0.00124019,38437.0,38435.0,0.24]
[1643743465378,0.00124019,38437.0,38436.0,1.97662781]
[1643743465821,0.065062,38443.0,38436.0,1.97662781]
[1643743465822,0.00495984,38445.0,38437.0,1.35]
[1643743466025,0.7332,38460.0,38438.0,0.64512518]
[1643743466026,0.06504998,38455.0,38438.0,0.64512518]
[1643743466221,0.37309732,38458.0,38438.0,0.64512518]
[1643743466222,0.24299318,38458.0,38438.0,0.74512518]
[1643743466523,0.065054,38448.0,38438.0,0.454208]
[1643743466720,0.065054,38448.0,38442.0,0.26345534]
[1643743466918,0.065054,38448.0,38447.0,0.08507791]
[1643743467124,0.065054,38448.0,38447.0,0.38710291]
[1643743467519,0.065054,38448.0,38447.0,0.69476765]
[1643743467720,0.065054,38448.0,38447.0,0.38710291]
[1643743468622,0.065054,38448.0,38447.0,0.302025]
[1643743468821,0.115054,38448.0,38439.0,0.0521]
[1643743469021,0.065054,38448.0,38438.0,0.1]
[1643743469274,0.05,38447.0,38438.0,0.1]
[1643743469473,0.06507,38445.0,38439.0,0.30209]
[1643743469677,0.06507,38445.0,38444.0,0.121748]
[1643743469875,0.06507,38445.0,38438.0,0.1]
[1643743470079,0.11507,38445.0,38438.0,0.1]
[1643743471077,0.00133876,38443.0,38438.0,0.1]
[1643743471676,0.065073,38442.0,38438.0,0.1]
[1643743471879,0.065073,38442.0,38439.0,0.302099]
[1643743472081,0.18148376,38443.0,38439.0,0.302099]
[1643743472082,0.05,38443.0,38439.0,0.302099]
[1643743472282,0.00121843,38442.0,38439.0,0.302099]
[1643743472478,0.01941249,38448.0,38440.0,0.55]
[1643743472479,0.04480707,38447.0,38440.0,0.55]
[1643743472678,0.04187738,38447.0,38440.0,0.75259773]
[1643743472879,0.25757289,38449.0,38440.0,0.75259773]
[1643743473323,0.2527,38449.0,38440.0,0.96357246]
[1643743473523,0.2527,38449.0,38446.0,0.09292673]
[1643743473721,0.01,38449.0,38440.0,0.84681407]
[1643743474121,0.01,38449.0,38440.0,0.63583934]
[1643743474722,0.00080456,38446.0,38441.0,0.09702902]
[1643743475426,0.00080456,38446.0,38438.0,0.230096]
[1643743475624,0.09637888,38448.0,38438.0,0.230096]
[1643743475625,0.321975,38447.0,38438.0,0.230096]
[1643743475825,0.00134026,38445.0,38438.0,0.230096]
[1643743476026,0.04773092,38445.0,38438.0,0.230096]
[1643743476225,0.00134026,38445.0,38438.0,0.230096]
[1643743476424,0.25528736,38445.0,38438.0,0.230096]
[1643743476628,0.09610197,38444.0,38438.0,0.1]
[1643743476887,0.04699868,38442.0,38438.0,0.1]
[1643743477081,0.04699868,38442.0,38437.0,0.00107772]
[1643743477082,0.77874564,38441.0,38437.0,0.00107772]
[1643743477484,0.82874564,38441.0,38437.0,0.00107772]
[1643743477681,0.44339082,38441.0,38437.0,0.00107772]
[1643743478082,0.44339082,38441.0,38430.0,0.28198389]
[1643743478083,0.03612631,38439.0,38430.0,0.28198389]
[1643743478281,1.26982031,38438.0,38437.0,0.00107772]
[1643743478581,1.05,38438.0,38437.0,0.00107772]
[1643743478779,1.31613812,38438.0,38437.0,0.00107772]
[1643743478982,1.05,38438.0,38437.0,0.00107772]
[1643743479280,1.05,38438.0,38430.0,0.28198389]
[1643743479281,0.04100443,38437.0,38430.0,0.28198389]
[1643743479482,0.27876463,38436.0,38430.0,0.065066]
[1643743479680,0.31292255,38436.0,38427.0,0.065069]
[1643743479880,0.36292255,38436.0,38427.0,0.065069]
[1643743480084,0.0521,38435.0,38427.0,0.065069]
[1643743480283,0.09955397,38435.0,38429.0,0.12274592]
[1643743480527,0.0521,38435.0,38429.0,0.42037531]
[1643743480717,0.0521,38435.0,38429.0,0.4212111]
[1643743480918,0.0521,38435.0,38430.0,0.08146725]
[1643743481120,0.0521,38435.0,38430.0,0.14653125]
[1643743481320,0.05,38439.0,38430.0,0.14653125]
[1643743481520,0.05,38439.0,38430.0,0.065064]
[1643743481719,0.28808206,38438.0,38430.0,0.065064]
[1643743481918,0.27308206,38442.0,38433.0,0.00083571]
[1643743482120,0.05,38438.0,38433.0,0.00083571]
[1643743482320,0.0521,38440.0,38433.0,0.00083571]
[1643743482819,0.03341651,38439.0,38432.0,0.010406]
[1643743483018,0.03341651,38439.0,38435.0,0.00089015]
[1643743483218,0.08341651,38439.0,38435.0,0.00089015]
[1643743483419,0.065061,38441.0,38435.0,0.10367303]
[1643743484019,0.95304636,38444.0,38435.0,0.10278288]
[1643743484020,1.016856,38444.0,38435.0,0.10278288]
[1643743484276,0.2929024,38444.0,38436.0,0.00089011]
[1643743484477,0.03535952,38443.0,38436.0,0.00089011]
[1643743484678,0.03918966,38443.0,38436.0,0.00089011]
[1643743484877,0.04294626,38442.0,38436.0,0.00089011]
[1643743485076,0.03827017,38443.0,38436.0,0.00089011]
[1643743485281,0.46558769,38444.0,38433.0,0.065059]
[1643743485282,0.49994366,38444.0,38433.0,0.065059]
[1643743485479,0.46558771,38444.0,38437.0,0.00089009]
[1643743485677,0.50254496,38444.0,38437.0,0.00089009]
[1643743486478,0.40129854,38444.0,38437.0,0.08358291]
[1643743486679,0.04141352,38443.0,38437.0,0.08446074]
[1643743487280,0.06629632,38444.0,38437.0,0.08446074]
[1643743487483,0.06629632,38444.0,38437.0,0.07380194]
[1643743487681,0.06629632,38444.0,38437.0,0.07292411]
[1643743487682,0.065056,38444.0,38437.0,0.07292411]
[1643743487885,0.06629632,38444.0,38437.0,0.07380194]
[1643743488322,0.04947339,38443.0,38437.0,0.07380194]
[1643743488920,0.04947339,38443.0,38437.0,0.07292411]
[1643743489121,0.165056,38444.0,38437.0,0.00087783]
[1643743489122,0.04402593,38442.0,38437.0,0.00087783]
[1643743489320,0.06506,38441.0,38437.0,0.00087783]
[1643743489722,0.16506,38441.0,38433.0,0.10326412]
[1643743490125,0.16506,38441.0,38435.0,0.08405762]
[1643743490526,0.16506,38441.0,38435.0,0.14911362]
[1643743490723,0.16506,38441.0,38433.0,0.10326412]
[1643743491125,0.20390926,38441.0,38433.0,0.10326412]
[1643743491527,0.15390926,38441.0,38433.0,0.10326412]
[1643743491772,0.15390926,38441.0,38434.0,0.10221605]
[1643743492877,0.17302258,38441.0,38435.0,0.065057]
[1643743493082,0.15390926,38441.0,38435.0,0.065057]
[1643743493875,0.15524864,38441.0,38435.0,0.06613077]
[1643743494777,0.15390926,38441.0,38434.0,0.11262105]
[1643743494977,0.15524864,38441.0,38435.0,0.00107377]
[1643743495177,0.11639938,38441.0,38435.0,0.06613077]
[1643743495629,0.11639938,38441.0,38435.0,0.00107377]
[1643743495828,0.04344064,38439.0,38435.0,0.00107377]
[1643743496027,0.04344064,38439.0,38434.0,0.10221605]
[1643743496227,0.09344064,38439.0,38435.0,0.00107377]
[1643743497229,0.09344064,38439.0,38434.0,0.10221605]
[1643743497428,0.09344064,38439.0,38435.0,0.00107377]
[1643743498432,0.09344064,38439.0,38434.0,0.010405]
[1643743498629,0.09344064,38439.0,38435.0,0.00107377]
[1643743498630,0.130124,38438.0,38435.0,0.00107377]
[1643743498830,0.03670249,38437.0,38435.0,0.00107377]
[1643743499129,0.08670249,38437.0,38435.0,0.00107377]
[1643743499575,0.08670249,38437.0,38429.0,0.42775039]
[1643743499776,0.065066,38435.0,38434.0,0.00107379]
[1643743500782,0.065066,38435.0,38429.0,0.52858489]
[1643743500979,0.065066,38435.0,38433.0,0.00107384]
[1643743501979,0.065066,38435.0,38429.0,0.2309555]
[1643743502179,0.065066,38435.0,38432.0,0.00107385]
[1643743502585,0.34415854,38434.0,38432.0,0.00107385]
[1643743502784,1.56837892,38433.0,38432.0,0.00107385]
[1643743503052,1.62047892,38433.0,38432.0,0.00107385]
[1643743503246,1.67047892,38433.0,38421.0,0.22222364]
[1643743503453,0.06508,38430.0,38421.0,0.22222364]
[1643743503647,0.08740265,38429.0,38421.0,0.22222364]
[1643743503845,0.04075632,38428.0,38421.0,0.22222364]
[1643743504046,0.0521,38427.0,38421.0,0.33231285]
[1643743504245,0.03890598,38426.0,38421.0,0.33231285]
[1643743504656,0.05,38429.0,38422.0,0.367332]
[1643743504848,0.05,38429.0,38428.0,0.11359601]
[1643743505046,0.05,38429.0,38428.0,0.41580201]
[1643743505247,0.05,38430.0,38428.0,0.56914347]
[1643743505446,0.1,38430.0,38428.0,0.26693747]
[1643743505645,0.2845928,38434.0,38428.0,0.26693747]
[1643743505945,0.4496558,38434.0,38428.0,0.26693747]
[1643743506347,0.165063,38434.0,38428.0,0.26693747]
[1643743506979,0.165063,38434.0,38429.0,0.00107037]
[1643743507779,0.165063,38434.0,38430.0,0.065064]
[1643743508180,0.165063,38434.0,38431.0,0.15576421]
[1643743508382,0.12185131,38434.0,38432.0,0.130109]
[1643743508579,0.07185131,38434.0,38432.0,0.130109]
[1643743508782,0.05,38436.0,38432.0,0.130109]
[1643743508980,0.165056,38437.0,38436.0,0.08983703]
[1643743509181,0.165056,38437.0,38436.0,0.39567648]
[1643743509581,0.1,38437.0,38436.0,0.39567648]
[1643743509882,0.05,38437.0,38436.0,0.39567648]
[1643743510281,0.05133852,38440.0,38436.0,0.52577248]
[1643743510537,0.1,38441.0,38436.0,0.52577248]
[1643743510733,0.00133852,38440.0,38436.0,0.52577248]
[1643743511237,0.00133852,38440.0,38436.0,0.47092235]
[1643743511435,0.08065282,38442.0,38437.0,0.4]
[1643743511635,0.08065282,38442.0,38436.0,0.47092235]
[1643743512235,0.18065282,38442.0,38436.0,0.47092235]
[1643743512436,0.08065282,38442.0,38436.0,0.47092235]
[1643743512634,0.1,38441.0,38436.0,0.47092235]
[1643743512836,0.06138952,38442.0,38436.0,0.47092235]
[1643743513240,0.847444,38444.0,38437.0,0.0521]
[1643743513439,0.130082,38450.0,38437.0,0.117141]
[1643743513637,0.130082,38450.0,38438.0,0.302124]
[1643743513835,0.130082,38450.0,38448.0,0.09563886]
[1643743514040,0.04817454,38453.0,38448.0,0.09563886]
[1643743514287,0.7562,38455.0,38448.0,0.61154673]
[1643743514288,0.00535968,38452.0,38448.0,0.61154673]
[1643743514485,0.00535968,38452.0,38449.0,1.35]
[1643743514687,0.32178895,38465.0,38453.0,1.35]
[1643743514886,0.32178895,38466.0,38454.0,0.354052]
[1643743515089,0.32178895,38467.0,38455.0,0.09337731]
[1643743515285,0.04612475,38466.0,38465.0,0.09887554]
[1643743516289,0.32178895,38467.0,38465.0,0.09887554]
[1643743516690,0.130022,38468.0,38465.0,0.09887554]
[1643743516691,0.04525346,38466.0,38465.0,0.09887554]
[1643743516887,0.45181095,38468.0,38465.0,0.09887554]
[1643743517087,0.04360938,38466.0,38465.0,0.09887554]
[1643743518032,0.130022,38468.0,38465.0,0.09887554]
[1643743518327,0.05,38466.0,38460.0,0.065014]
[1643743518526,0.065014,38464.0,38462.0,0.2661781]
[1643743518928,0.065014,38464.0,38460.0,0.065014]
[1643743519235,0.065014,38464.0,38456.0,0.130024]
[1643743519236,0.16335854,38464.0,38456.0,0.31121556]
[1643743519430,0.115014,38464.0,38456.0,0.130024]
[1643743519629,0.04542903,38463.0,38456.0,0.130024]
[1643743519828,0.04542903,38463.0,38457.0,0.29028638]
[1643743519829,0.065021,38462.0,38457.0,0.29028638]
[1643743520231,0.0013466,38461.0,38458.0,0.065011]
[1643743520430,0.0013466,38461.0,38459.0,0.48854131]
[1643743520830,0.0513466,38461.0,38460.0,0.64266962]
[1643743521029,0.0513466,38461.0,38460.0,0.94457162]
[1643743521230,0.05,38461.0,38460.0,0.39457162]
[1643743521430,0.00134659,38462.0,38460.0,0.39457162]
[1643743521783,0.00134659,38462.0,38461.0,0.18241869]
[1643743522180,0.00134659,38462.0,38461.0,0.06501]
[1643743522380,0.165009,38464.0,38456.0,0.130024]
[1643743522582,0.065017,38461.0,38456.0,0.130024]
[1643743522780,0.115017,38461.0,38456.0,0.130024]
[1643743522980,0.15527607,38461.0,38456.0,0.130024]
[1643743523182,0.20527607,38461.0,38456.0,0.130024]
[1643743523482,0.05,38460.0,38456.0,0.130024]
[1643743523683,0.05,38460.0,38453.0,0.130034]
[1643743523684,0.04742069,38457.0,38453.0,0.130034]
[1643743523883,0.065023,38459.0,38453.0,0.130034]
[1643743523884,0.117123,38459.0,38453.0,0.130034]
[1643743524083,0.05,38458.0,38453.0,0.130034]
[1643743524289,0.04357757,38455.0,38453.0,0.130034]
[1643743524581,0.05,38457.0,38453.0,0.130034]
[1643743524783,0.1521,38459.0,38453.0,0.130034]
[1643743524982,0.13139067,38457.0,38453.0,0.130034]
[1643743525184,0.05134667,38457.0,38453.0,0.130034]
[1643743525385,0.00134667,38457.0,38453.0,0.130034]
[1643743526026,0.165019,38459.0,38453.0,0.130034]
[1643743526223,0.00134667,38457.0,38453.0,0.130034]
[1643743526722,0.165019,38459.0,38453.0,0.130034]
[1643743526723,0.16136567,38459.0,38453.0,0.130034]
[1643743526929,0.21346567,38459.0,38453.0,0.130034]
[1643743528622,0.21346567,38459.0,38453.0,0.00055497]
[1643743528823,0.05,38458.0,38453.0,0.00055497]
[1643743529022,0.1021,38458.0,38453.0,0.00055497]
[1643743529278,0.0521,38458.0,38453.0,0.00055497]
[1643743530179,0.1021,38458.0,38453.0,0.00055497]
[1643743530581,0.1021,38458.0,38454.0,0.065016]
[1643743530979,0.12252963,38458.0,38454.0,0.065016]
[1643743531283,0.1021,38458.0,38454.0,0.065016]
[1643743531683,0.350003,38457.0,38454.0,0.065016]
[1643743531883,0.0521,38456.0,38453.0,0.00110993]
[1643743532185,0.117123,38456.0,38453.0,0.00055497]
[1643743532683,0.117123,38456.0,38454.0,0.08015181]
[1643743533130,0.107123,38456.0,38453.0,0.00055497]
[1643743533329,0.107123,38456.0,38452.0,0.130034]
[1643743533530,0.107123,38456.0,38453.0,0.00055497]
[1643743533730,0.05,38456.0,38453.0,0.00055497]
[1643743534128,0.0521,38457.0,38453.0,0.00055497]
[1643743534332,0.065021,38455.0,38453.0,0.00055497]
[1643743534528,0.065021,38455.0,38452.0,0.130034]
[1643743534733,0.04209254,38454.0,38453.0,0.1065811]
[1643743535131,0.05,38454.0,38453.0,0.4085481]
[1643743535329,0.04004039,38463.0,38453.0,0.4085481]
[1643743535530,0.065014,38457.0,38453.0,0.1065811]
[1643743535730,0.065014,38457.0,38453.0,0.17104313]
[1643743535929,0.065014,38457.0,38456.0,0.24840125]
[1643743536328,0.065014,38457.0,38453.0,0.17215306]
[1643743536532,0.08981895,38456.0,38453.0,0.00110993]
[1643743536797,0.08981895,38456.0,38447.0,0.010401]
[1643743536798,1.54709632,38454.0,38447.0,0.010401]
[1643743536996,0.05,38449.0,38447.0,0.010401]
[1643743537201,0.05,38449.0,38447.0,0.000101]
[1643743537202,2.06736306,38448.0,38447.0,0.000101]
[1643743537400,2.12641884,38448.0,38447.0,0.000101]
[1643743537595,1.852103,38448.0,38447.0,0.000101]
[1643743539700,1.852103,38448.0,38446.0,0.00055368]
[1643743539901,1.55317427,38447.0,38446.0,0.00055368]
[1643743540096,1.95527727,38447.0,38446.0,0.00055368]
[1643743540562,1.95527727,38447.0,38441.0,0.09049349]
[1643743540759,1.565036,38446.0,38445.0,0.00110461]
[1643743541058,1.667136,38446.0,38445.0,0.00110461]
[1643743541257,1.717136,38446.0,38445.0,0.00110461]
[1643743541657,1.717136,38446.0,38440.0,0.130063]
[1643743541858,0.26270874,38445.0,38444.0,0.00110464]
[1643743542058,0.66481174,38445.0,38444.0,0.00110464]
[1643743542258,0.952103,38445.0,38444.0,0.00110464]
[1643743542858,0.952103,38445.0,38443.0,0.14865071]
[1643743543057,0.950003,38444.0,38443.0,0.14975538]
[1643743543258,1.050003,38444.0,38443.0,0.14975538]
[1643743543459,0.7,38444.0,38443.0,0.14975538]
[1643743543658,0.7,38444.0,38443.0,0.08472438]
[1643743543857,0.7479,38444.0,38443.0,0.08472438]
[1643743544060,0.7479,38444.0,38443.0,0.08361971]
[1643743544490,0.7479,38444.0,38442.0,0.0011047]
[1643743544688,1.050003,38443.0,38442.0,0.0011047]
[1643743544888,1.097903,38443.0,38442.0,0.0011047]
[1643743545091,0.7479,38443.0,38442.0,0.0011047]
[1643743545290,0.0479,38443.0,38442.0,0.065031]
[1643743545691,0.0479,38443.0,38442.0,0.15477372]
[1643743545894,0.881958,38452.0,38442.0,0.15477372]
[1643743545895,0.7998,38452.0,38442.0,0.15477372]
[1643743546091,0.7519,38452.0,38442.0,0.15477372]
[1643743546290,0.7519,38452.0,38448.0,0.22601684]
[1643743546490,0.7519,38452.0,38448.0,0.29103984]
[1643743546689,0.27431584,38455.0,38448.0,0.29103984]
[1643743546889,0.27431584,38455.0,38448.0,0.3874565]
[1643743547089,0.065023,38451.0,38448.0,0.3874565]
[1643743547489,0.04361291,38450.0,38448.0,0.3874565]
[1643743547892,0.04361291,38450.0,38448.0,0.38856103]
[1643743548332,0.05,38450.0,38448.0,0.09752119]
[1643743548530,0.05,38450.0,38448.0,0.00110453]